bitfinex/quotes_BTCUSD_20240901
["timestamp","ask_amount","ask_price","bid_price","bid_amount"]
[1725229574730,2.00379723,57786.0,57785.0,0.0008998]
[1725229574995,1.990721,57786.0,57785.0,0.0008998]
[1725229575217,1.99979629,57786.0,57785.0,0.0008998]
[1725229575457,1.87679629,57786.0,57785.0,0.0008998]
[1725229575697,1.88579656,57786.0,57785.0,0.0018998]
[1725229575915,2.23190056,57786.0,57785.0,0.0018998]
[1725229576619,2.22290056,57786.0,57785.0,0.0008998]
[1725229576853,1.87679656,57786.0,57785.0,0.0008998]
[1725229577323,2.22290056,57786.0,57785.0,0.0008998]
[1725229577541,1.87679656,57786.0,57785.0,0.0008998]
[1725229577978,2.22690056,57786.0,57785.0,0.0008998]
[1725229578199,1.88079656,57786.0,57785.0,0.0008998]
[1725229578414,2.22690056,57786.0,57785.0,0.0008998]
[1725229578651,1.88079656,57786.0,57785.0,0.0008998]
[1725229578873,1.88079566,57786.0,57785.0,0.0008998]
[1725229579784,1.90795555,57786.0,57785.0,0.0008998]
[1725229580056,1.34252389,57786.0,57785.0,0.0008998]
[1725229580294,1.468299,57786.0,57785.0,0.0008998]
[1725229580518,0.277052,57786.0,57785.0,0.0008998]
[1725229580743,0.20420817,57786.0,57785.0,0.0008998]
[1725229581221,0.03115617,57786.0,57785.0,0.0008998]
[1725229581464,0.20020817,57786.0,57785.0,0.0907998]
[1725229581699,0.20020817,57786.0,57785.0,0.27382742]
[1725229581700,0.02715617,57786.0,57785.0,0.27382742]
[1725229581914,0.02715617,57786.0,57785.0,0.10077242]
[1725229582130,0.03115617,57786.0,57785.0,0.10077242]
[1725229582353,0.03115617,57786.0,57785.0,0.27382742]
[1725229582806,0.02715617,57786.0,57785.0,0.27382742]
[1725229583051,0.02715617,57786.0,57785.0,0.28782742]
[1725229583052,0.02815617,57786.0,57785.0,0.28782742]
[1725229583285,0.02815617,57786.0,57785.0,0.63393742]
[1725229583513,0.02815617,57786.0,57785.0,0.11477242]
[1725229584444,0.54731217,57786.0,57785.0,0.11477242]
[1725229584925,0.54731217,57786.0,57785.0,0.1047998]
[1725229585407,0.54731217,57786.0,57785.0,0.28782742]
[1725229585408,0.02815617,57786.0,57785.0,0.28782742]
[1725229585635,0.02815617,57786.0,57785.0,0.11477242]
[1725229586623,0.02815617,57786.0,57785.0,0.02487242]
[1725229586624,2.42931917,57786.0,57785.0,0.02487242]
[1725229586853,2.96914117,57786.0,57785.0,0.02487242]
[1725229587076,2.96914117,57786.0,57785.0,0.0148998]
[1725229587529,1.69041517,57786.0,57785.0,0.0148998]
[1725229587753,1.69041517,57786.0,57785.0,0.0008998]
[1725229587754,1.68941517,57786.0,57785.0,0.0008998]
[1725229587982,1.69341517,57786.0,57785.0,0.0008998]
[1725229588206,1.7064834,57786.0,57785.0,0.0008998]
[1725229588430,1.59715117,57786.0,57785.0,0.0008998]
[1725229588676,1.95132313,57786.0,57785.0,0.0008998]
[1725229588940,1.95685774,57786.0,57785.0,0.0008998]
[1725229589166,1.95685774,57786.0,57785.0,0.2126998]
[1725229589167,0.004,57786.0,57785.0,0.2126998]
[1725229589389,0.177052,57786.0,57785.0,0.2126998]
[1725229589616,0.004,57786.0,57785.0,0.22267242]
[1725229589842,0.03115235,57786.0,57785.0,0.22267242]
[1725229590265,0.03115235,57786.0,57785.0,0.41799466]
[1725229590742,0.03115235,57786.0,57785.0,0.76410466]
[1725229591185,0.02715235,57786.0,57785.0,0.76410466]
[1725229591425,0.02715235,57786.0,57785.0,0.74183742]
[1725229591682,0.03015235,57786.0,57785.0,0.74183742]
[1725229592115,0.02715235,57786.0,57785.0,0.74183742]
[1725229593007,0.02815235,57786.0,57785.0,0.75083742]
[1725229595011,0.02715235,57786.0,57785.0,0.74183742]
[1725229595230,0.02815235,57786.0,57785.0,0.75183742]
[1725229595692,0.02715235,57786.0,57785.0,0.74183742]
[1725229596138,0.02815235,57786.0,57785.0,0.75283742]
[1725229597747,0.02815235,57786.0,57785.0,0.02187242]
[1725229598017,1.212364,57786.0,57785.0,0.0246066]
[1725229598238,1.53086416,57786.0,57785.0,0.0008998]
[1725229598464,1.53086416,57786.0,57785.0,0.0128998]
[1725229598465,1.53186416,57786.0,57785.0,0.0128998]
[1725229598707,1.63186416,57786.0,57785.0,0.0128998]
[1725229598947,1.97696816,57786.0,57785.0,0.0008998]
[1725229599185,1.99901858,57786.0,57785.0,0.0008998]
[1725229599436,2.39252258,57786.0,57785.0,0.0008998]
[1725229599673,2.53356213,57786.0,57785.0,0.0008998]
[1725229599906,1.678103,57781.0,57780.0,0.0009009]
[1725229600146,1.678103,57781.0,57744.0,0.1129]
[1725229600147,0.519516,57746.0,57744.0,0.1129]
[1725229600380,0.86586,57746.0,57744.0,0.1129]
[1725229600613,0.173175,57745.0,57744.0,0.1129]
[1725229600841,0.173175,57745.0,57727.0,0.008998]
[1725229600842,0.173199,57737.0,57736.0,0.1129]
[1725229601070,0.519597,57737.0,57736.0,0.1129]
[1725229601301,0.346362,57743.0,57727.0,0.008998]
[1725229601302,0.519651,57731.0,57730.0,0.1213]
[1725229601531,0.519678,57728.0,57727.0,0.008998]
[1725229601804,0.86613,57728.0,57727.0,0.008998]
[1725229602038,3.018303,57728.0,57727.0,0.008998]
[1725229602260,3.55688703,57728.0,57727.0,0.008998]
[1725229602484,3.57349918,57728.0,57727.0,0.008998]
[1725229602965,3.57349918,57728.0,57711.0,0.0004]
[1725229602966,1.564196,57722.0,57711.0,0.0004]
[1725229603209,0.569186,57716.0,57711.0,0.0004]
[1725229603448,0.569186,57716.0,57711.0,1e-06]
[1725229603449,1.576466,57712.0,57711.0,1e-06]
[1725229603667,0.87179,57684.0,57683.0,0.45580786]
[1725229603959,0.87179,57684.0,57681.0,1e-06]
[1725229603960,0.87382,57682.0,57681.0,1e-06]
[1725229604200,0.87382,57682.0,57658.0,0.0113927]
[1725229604201,0.537146,57676.0,57658.0,0.0113927]
[1725229604459,0.183433,57659.0,57658.0,0.0113927]
[1725229604728,0.183433,57659.0,57650.0,0.00358042]
[1725229604729,0.351915,57651.0,57650.0,0.00358042]
[1725229604968,0.520372,57651.0,57650.0,0.00358042]
[1725229605230,0.73055839,57651.0,57650.0,0.00358042]
[1725229605466,0.04860839,57651.0,57650.0,0.00358042]
[1725229605684,0.0175,57667.0,57650.0,0.00358042]
[1725229605685,0.1175,57667.0,57650.0,0.00358042]
[1725229605916,0.103952,57666.0,57651.0,0.1208]
[1725229606156,0.103952,57666.0,57650.0,0.00358042]
[1725229606157,0.318167,57666.0,57650.0,0.00358042]
[1725229606384,0.005,57656.0,57650.0,0.00358042]
[1725229606610,0.13711316,57665.0,57650.0,0.00358042]
[1725229606611,0.11461316,57665.0,57650.0,0.00358042]
[1725229606881,0.1336,57664.0,57650.0,0.00358042]
[1725229607113,0.1,57665.0,57650.0,0.00358042]
[1725229607347,0.17615,57664.0,57650.0,0.00358042]
[1725229607577,0.02721553,57661.0,57657.0,0.008998]
[1725229607818,0.18689,57660.0,57657.0,0.008998]
[1725229608048,0.02721553,57661.0,57657.0,0.008998]
[1725229608049,0.173436,57658.0,57657.0,0.008998]
[1725229608279,0.02721553,57661.0,57657.0,0.008998]
[1725229609948,0.02721553,57661.0,57658.0,0.0921]
[1725229610183,0.02721553,57661.0,57657.0,0.008998]
[1725229610184,0.173436,57658.0,57657.0,0.008998]
[1725229610417,0.02821553,57661.0,57657.0,0.008998]
[1725229610418,0.01561316,57661.0,57657.0,0.008998]
[1725229610666,0.173434,57659.0,57657.0,0.008998]
[1725229610902,0.04282756,57661.0,57657.0,0.008998]
[1725229611120,0.0282144,57661.0,57657.0,0.008998]
[1725229611340,0.0272144,57661.0,57658.0,0.01181525]
[1725229612018,0.0272144,57661.0,57660.0,0.17343]
[1725229612302,0.0272144,57661.0,57658.0,0.01181525]
[1725229612535,0.0272144,57661.0,57657.0,0.008998]
[1725229612536,0.520308,57658.0,57657.0,0.008998]
[1725229612772,2.601801,57658.0,57657.0,0.008998]
[1725229612995,2.596801,57658.0,57657.0,0.008998]
[1725229613255,2.142873,57658.0,57657.0,0.008998]
[1725229613481,2.147873,57658.0,57657.0,0.008998]
[1725229613708,2.085427,57658.0,57657.0,0.008998]
[1725229613956,2.61299073,57658.0,57657.0,0.008998]
[1725229614178,2.70326689,57658.0,57657.0,0.008998]
[1725229614421,1.219202,57651.0,57627.0,0.1082]
[1725229614665,1.219202,57651.0,57621.0,0.0105033]
[1725229614666,3.089323,57651.0,57621.0,0.0105033]
[1725229614883,1.214601,57632.0,57621.0,0.0105033]
[1725229615109,1.859997,57632.0,57621.0,0.0105033]
[1725229615345,2.2580429,57632.0,57621.0,0.0105033]
[1725229615587,0.520633,57622.0,57621.0,0.0105033]
[1725229615836,0.967722,57622.0,57621.0,0.0105033]
[1725229616082,2.23962314,57622.0,57621.0,3e-07]
[1725229616300,2.23962314,57622.0,57611.0,0.0004]
[1725229616301,1.4998329,57621.0,57611.0,0.0004]
[1725229616525,0.1,57622.0,57611.0,0.0004]
[1725229616526,0.520678,57617.0,57611.0,0.0004]
[1725229616759,0.604034,57617.0,57611.0,0.0004]
[1725229617002,0.173559,57617.0,57611.0,0.0004]
[1725229617249,0.273559,57617.0,57611.0,0.0004]
[1725229617461,1.610815,57617.0,57611.0,0.0004]
[1725229617705,2.77981287,57617.0,57611.0,0.0004]
[1725229617935,2.77981287,57617.0,57603.0,0.00013]
[1725229617936,0.877995,57604.0,57603.0,0.00013]
[1725229618158,3.739012,57604.0,57603.0,0.00013]
[1725229618449,3.44942811,57604.0,57603.0,0.00013]
[1725229618668,3.99702097,57604.0,57603.0,1e-06]
[1725229618917,3.99702097,57604.0,57592.0,0.008998]
[1725229618918,0.580896,57593.0,57592.0,0.008998]
[1725229619149,2.697781,57593.0,57592.0,0.008998]
[1725229619396,2.697781,57593.0,57570.0,0.0001766]
[1725229619397,2.697781,57593.0,57532.0,0.005]
[1725229619398,0.347442,57564.0,57532.0,0.005]
[1725229619662,0.347442,57564.0,57537.0,0.50540786]
[1725229619663,0.878777,57552.0,57537.0,0.50540786]
[1725229619880,2.955909,57552.0,57545.0,0.00902]
[1725229620109,1.903672,57552.0,57545.0,0.00902]
[1725229620337,0.5238,57562.0,57545.0,0.00902]
[1725229620338,0.005,57561.0,57545.0,0.00902]
[1725229620602,0.004,57573.0,57552.0,0.1169]
[1725229620829,0.50540786,57567.0,57552.0,0.12791676]
[1725229621073,0.521257,57553.0,57552.0,0.01101676]
[1725229621301,0.05,57568.0,57552.0,0.01101676]
[1725229621302,0.014,57580.0,57552.0,0.0864]
[1725229621523,0.005,57571.0,57552.0,0.0864]
[1725229621757,0.005,57568.0,57553.0,0.01101141]
[1725229621979,0.361344,57580.0,57552.0,0.0864]
[1725229621980,0.212141,57567.0,57552.0,0.0864]
[1725229622252,0.005,57576.0,57552.0,0.0864]
[1725229622253,0.559343,57566.0,57552.0,0.0864]
[1725229622474,0.559343,57566.0,57554.0,0.005]
[1725229622475,0.1,57566.0,57554.0,0.005]
[1725229622717,0.12966,57565.0,57554.0,0.005]
[1725229622928,0.347357,57578.0,57552.0,0.0864]
[1725229622929,0.014,57590.0,57566.0,0.005]
[1725229623221,0.014,57590.0,57568.0,0.005]
[1725229623222,0.50540786,57576.0,57568.0,0.005]
[1725229623451,0.347217,57601.0,57574.0,0.093]
[1725229623682,0.50540786,57610.0,57594.0,0.005]
[1725229623902,0.50540786,57610.0,57605.0,0.005]
[1725229624120,0.50540786,57610.0,57599.0,0.347223]
[1725229624121,0.632671,57609.0,57595.0,0.2098]
[1725229624349,0.637671,57609.0,57595.0,0.2098]
[1725229624578,0.01469041,57611.0,57595.0,0.2098]
[1725229624579,0.420918,57608.0,57595.0,0.2098]
[1725229624846,0.005,57618.0,57595.0,0.2098]
[1725229624847,0.012,57618.0,57595.0,0.2148]
[1725229625071,0.012,57618.0,57571.0,0.002]
[1725229625072,0.005,57602.0,57586.0,0.0922]
[1725229625303,0.3473,57587.0,57586.0,0.0922]
[1725229625529,1.729621,57601.0,57586.0,0.0922]
[1725229625530,0.01469041,57601.0,57586.0,0.0922]
[1725229625779,0.019,57605.0,57565.0,0.347429]
[1725229625780,0.007,57596.0,57578.0,0.0922]
[1725229626017,0.0238,57585.0,57566.0,0.1176]
[1725229626247,0.349238,57598.0,57578.0,0.005]
[1725229626502,0.349238,57598.0,57558.0,0.34747]
[1725229626503,0.347451,57562.0,57561.0,0.0922]
[1725229626723,0.173725,57562.0,57561.0,0.0922]
[1725229627217,0.347369,57576.0,57564.0,0.005]
[1725229627450,0.347369,57576.0,57561.0,0.0922]
[1725229627451,0.173709,57568.0,57561.0,0.0922]
[1725229627696,0.1,57584.0,57567.0,0.005]
[1725229627697,0.01472666,57575.0,57567.0,0.005]
[1725229627912,0.1,57576.0,57561.0,0.0922]
[1725229627913,0.1,57576.0,57572.0,0.005]
[1725229628160,0.50540786,57582.0,57570.0,0.005]
[1725229628427,0.50540786,57582.0,57568.0,0.1176]
[1725229628428,0.024,57599.0,57575.0,0.005]
[1725229628675,0.347294,57589.0,57575.0,0.005]
[1725229628930,0.01472666,57593.0,57577.0,0.005]
[1725229629188,0.01472666,57605.0,57582.0,0.005]
[1725229629454,0.0485,57611.0,57589.0,0.005]
[1725229629455,0.347221,57601.0,57589.0,0.005]
[1725229629703,0.52343185,57604.0,57594.0,0.005]
[1725229629704,0.01802399,57604.0,57594.0,0.005]
[1725229629947,0.173586,57609.0,57600.0,0.005]
[1725229630196,0.173586,57609.0,57575.0,0.015]
[1725229630197,0.005,57632.0,57606.0,0.0898]
[1725229630198,0.347135,57615.0,57606.0,0.0898]
[1725229630454,0.01802399,57621.0,57607.0,0.005]
[1725229630671,0.34712,57617.0,57608.0,0.005]
[1725229630909,0.01802399,57621.0,57606.0,0.0898]
[1725229630910,0.173556,57618.0,57610.0,0.005]
[1725229631174,0.173556,57618.0,57606.0,0.0898]
[1725229631175,0.01472666,57637.0,57616.0,0.005]
[1725229631388,0.01472666,57637.0,57608.0,0.12309179]
[1725229631389,0.01802399,57631.0,57617.0,0.1169]
[1725229631661,0.01802399,57631.0,57622.0,0.005]
[1725229631879,0.01472666,57637.0,57622.0,0.005]
[1725229632108,0.520615,57624.0,57623.0,0.01703261]
[1725229632351,1.17607,57624.0,57623.0,0.01703261]
[1725229632561,1.17607,57624.0,57599.0,0.1119]
[1725229632562,0.173611,57600.0,57599.0,0.1119]
[1725229632783,1.215277,57600.0,57599.0,0.1119]
[1725229633004,1.10550088,57600.0,57599.0,0.1119]
[1725229633288,0.173647,57588.0,57587.0,0.1156]
[1725229633495,0.520941,57588.0,57587.0,0.1156]
[1725229633816,0.520941,57588.0,57562.0,0.005]
[1725229633817,1.719967,57588.0,57558.0,0.1156]
[1725229634028,0.173716,57565.0,57564.0,0.005]
[1725229634244,0.521203,57559.0,57558.0,0.1156]
[1725229634509,0.868672,57559.0,57558.0,0.1156]
[1725229635268,0.173734,57559.0,57558.0,0.1206]
[1725229635496,0.000821,57566.0,57565.0,0.005]
[1725229635772,0.50540786,57586.0,57565.0,0.005]
[1725229635773,0.50540786,57586.0,57579.0,0.005]
[1725229636019,0.50540786,57586.0,57584.0,0.005]
[1725229636020,0.173656,57585.0,57584.0,0.005]
[1725229636270,0.005,57606.0,57580.0,0.1156]
[1725229636271,0.173634,57593.0,57590.0,0.1001]
[1725229636482,0.173634,57593.0,57592.0,0.005]
[1725229636483,0.173632,57593.0,57592.0,0.005]
[1725229637177,0.173632,57593.0,57590.0,0.0951]
[1725229637178,0.0353,57623.0,57602.0,0.005]
[1725229637432,0.005,57629.0,57597.0,0.1156]
[1725229637433,0.85257486,57609.0,57608.0,0.005]
[1725229637856,0.347134,57615.0,57609.0,0.005]
[1725229638110,0.01475205,57628.0,57613.0,0.005]
[1725229638368,0.173568,57614.0,57613.0,0.005]
[1725229638627,0.173561,57617.0,57613.0,0.005]
[1725229638883,0.01475205,57628.0,57608.0,0.2107]
[1725229638884,0.173562,57616.0,57615.0,0.005]
[1725229639115,0.17355,57621.0,57616.0,0.005]
[1725229639349,0.01802399,57637.0,57624.0,0.005]
[1725229639579,0.01802399,57637.0,57617.0,0.1118]
[1725229639580,0.01802399,57637.0,57627.0,0.0971]
[1725229639803,0.520579,57628.0,57627.0,0.0971]
[1725229640037,0.347024,57633.0,57628.0,0.01138679]
[1725229640297,0.02722788,57635.0,57630.0,0.005]
[1725229640525,0.02722788,57635.0,57631.0,0.005]
[1725229640751,0.20073288,57635.0,57634.0,0.005]
[1725229640991,0.20073288,57635.0,57631.0,0.12347081]
[1725229640992,0.867572,57632.0,57631.0,0.12347081]
[1725229641219,0.867572,57632.0,57631.0,0.1121]
[1725229641220,0.520543,57632.0,57631.0,0.1121]
[1725229641511,0.173514,57632.0,57631.0,0.1121]
[1725229641731,0.54774488,57635.0,57634.0,0.005]
[1725229641962,0.173514,57632.0,57631.0,0.1121]
[1725229642466,0.173514,57632.0,57607.0,0.005]
[1725229642467,0.173541,57623.0,57622.0,0.121]
[1725229642470,0.173541,57623.0,57622.0,0.116]
[1725229642701,0.173541,57623.0,57597.0,0.005]
[1725229642702,0.867857,57613.0,57612.0,0.116]
[1725229642955,0.01475594,57632.0,57614.0,0.005]
[1725229642956,0.347095,57621.0,57614.0,0.005]
[1725229643179,0.1,57620.0,57612.0,0.116]
[1725229643402,0.50540786,57640.0,57626.0,0.005]
[1725229643669,0.50540786,57640.0,57613.0,0.02494134]
[1725229643670,0.50540786,57640.0,57630.0,0.005]
[1725229643895,0.173502,57637.0,57631.0,0.0964]
[1725229644184,0.173502,57637.0,57631.0,0.10777081]
[1725229644185,0.173514,57632.0,57631.0,0.10777081]
[1725229644424,0.347012,57635.0,57631.0,0.11277081]
[1725229644643,0.346957,57644.0,57631.0,0.11277081]
[1725229644644,0.520543,57632.0,57631.0,0.11277081]
[1725229644888,0.173514,57632.0,57631.0,0.11277081]
[1725229645892,1.214601,57632.0,57631.0,0.01137081]
[1725229646363,0.01475594,57634.0,57628.0,0.116]
[1725229646364,1.214664,57629.0,57628.0,0.116]
[1725229646588,0.520633,57622.0,57621.0,0.0964]
[1725229646850,0.520633,57622.0,57619.0,0.1154]
[1725229646851,0.0147577,57629.0,57619.0,0.1154]
[1725229647116,0.02723109,57632.0,57615.0,0.005]
[1725229647117,0.0147577,57622.0,57615.0,0.005]
[1725229647343,0.0147577,57622.0,57595.0,0.005]
[1725229647344,0.50540786,57640.0,57638.0,0.2118]
[1725229647595,0.52048,57639.0,57638.0,0.2118]
[1725229647820,0.005,57654.0,57630.0,0.1154]
[1725229647821,0.173517,57631.0,57630.0,0.1154]
[1725229648056,0.520552,57631.0,57630.0,0.1204]
[1725229648288,0.867587,57631.0,57630.0,0.1204]
[1725229648527,0.520552,57631.0,57630.0,0.1204]
[1725229649017,0.346996,57638.0,57630.0,0.1204]
[1725229649018,0.520489,57638.0,57637.0,0.005]
[1725229649269,0.346944,57647.0,57634.0,0.005]
[1725229649494,0.346972,57642.0,57637.0,0.005]
[1725229649731,0.0272251,57638.0,57631.0,0.005]
[1725229649984,0.520543,57632.0,57631.0,0.005]
[1725229650209,0.173514,57632.0,57631.0,0.005]
[1725229650496,0.173514,57632.0,57630.0,0.1154]
[1725229650497,0.173505,57635.0,57634.0,0.005]
[1725229650734,0.02722304,57637.0,57630.0,0.1154]
[1725229650735,0.02722304,57637.0,57631.0,0.005]
[1725229650956,0.02722304,57637.0,57635.0,0.005]
[1725229651189,0.03202304,57637.0,57635.0,0.005]
[1725229651638,0.03202304,57637.0,57636.0,0.005]
[1725229652123,0.03202304,57637.0,57631.0,0.005]
[1725229652360,0.03202304,57637.0,57617.0,0.005]
[1725229652361,0.002,57628.0,57614.0,0.1194]
[1725229652600,0.002,57628.0,57604.0,0.1244]
[1725229652601,0.173596,57605.0,57604.0,0.1244]
[1725229653129,0.002,57621.0,57604.0,0.1244]
[1725229653130,0.1,57621.0,57615.0,0.005]
[1725229653357,0.044,57633.0,57604.0,0.1194]
[1725229653358,0.173574,57612.0,57611.0,0.005]
[1725229653597,0.34713,57616.0,57607.0,0.005]
[1725229653841,0.173585,57609.0,57606.0,0.005]
[1725229654073,0.02723528,57620.0,57614.0,0.005]
[1725229654306,0.02723528,57620.0,57604.0,0.1194]
[1725229654307,0.34712,57617.0,57611.0,0.005]
[1725229654531,0.1,57627.0,57604.0,0.1244]
[1725229654532,0.520788,57605.0,57604.0,0.1244]
[1725229654754,0.435039,57616.0,57598.0,0.005]
[1725229654755,0.1,57616.0,57598.0,0.005]
[1725229654971,0.67292,57615.0,57598.0,0.005]
[1725229655258,0.1,57614.0,57607.0,0.005]
[1725229655485,0.1,57614.0,57597.0,0.1195]
[1725229655486,0.173559,57618.0,57613.0,0.1195]
[1725229655716,0.347097,57621.0,57615.0,0.005]
[1725229655968,0.347097,57621.0,57613.0,0.2149]
[1725229655969,0.173554,57619.0,57617.0,0.005]
[1725229656187,0.173556,57618.0,57617.0,0.005]
[1725229656461,0.044,57642.0,57625.0,0.005]
[1725229656681,1.88925786,57636.0,57618.0,0.005]
[1725229656961,1.88925786,57636.0,57613.0,0.2149]
[1725229656962,0.173568,57614.0,57613.0,0.2149]
[1725229657201,0.17359,57607.0,57606.0,0.1195]
[1725229657431,0.17359,57607.0,57591.0,0.694547]
[1725229657432,0.34718,57607.0,57600.0,0.005]
[1725229657667,0.047,57626.0,57606.0,0.01092999]
[1725229657893,0.173592,57607.0,57604.0,0.005]
[1725229658116,0.347122,57617.0,57604.0,0.005]
[1725229658117,0.1,57618.0,57608.0,0.005]
[1725229658350,0.347051,57629.0,57604.0,0.173596]
[1725229658351,0.347127,57616.0,57613.0,0.005]
[1725229658603,0.867902,57610.0,57603.0,0.005]
[1725229658858,0.34712,57617.0,57611.0,0.005]
[1725229659114,0.34712,57617.0,57613.0,0.005]
[1725229659382,0.1,57622.0,57616.0,0.005]
[1725229659644,0.520696,57615.0,57614.0,0.2149]
[1725229659868,0.520696,57615.0,57614.0,0.1195]
[1725229660314,0.867827,57615.0,57614.0,0.1195]
[1725229661064,0.520655,57620.0,57614.0,0.1245]
[1725229661286,0.54793215,57615.0,57614.0,0.1245]
[1725229661788,0.02723615,57615.0,57614.0,0.1245]
[1725229662028,0.02723615,57615.0,57614.0,0.645205]
[1725229662747,0.02723615,57615.0,57613.0,0.000902]
[1725229662748,0.03442,57653.0,57636.0,0.005]
[1725229662981,0.00082,57653.0,57636.0,0.273902]
[1725229663213,0.00082,57653.0,57646.0,0.471445]
[1725229663464,0.00082,57653.0,57652.0,0.005]
[1725229663982,0.00821,57676.0,57652.0,0.005]
[1725229663983,0.57500486,57674.0,57658.0,0.005]
[1725229664208,0.173433,57659.0,57658.0,0.005]
[1725229664673,0.520299,57659.0,57658.0,0.005]
[1725229664907,0.50540786,57674.0,57654.0,0.005]
[1725229665159,0.520335,57655.0,57654.0,0.005]
[1725229665452,0.50740786,57674.0,57652.0,0.2163]
[1725229665453,0.520354,57653.0,57652.0,0.2163]
[1725229665701,0.00821,57673.0,57652.0,0.2163]
[1725229665702,0.346809,57669.0,57658.0,0.005]
[1725229666031,0.00821,57673.0,57654.0,0.02163]
[1725229666032,0.354996,57673.0,57663.0,0.005]
[1725229666292,0.521074,57664.0,57663.0,0.1173]
[1725229666537,0.520308,57658.0,57657.0,0.005]
[1725229667033,0.00082,57664.0,57654.0,0.1142]
[1725229667034,0.00082,57664.0,57659.0,0.005]
[1725229667253,0.521076,57664.0,57663.0,0.005]
[1725229667489,0.520281,57661.0,57660.0,0.005]
[1725229667946,0.520281,57661.0,57654.0,0.1142]
[1725229667947,0.34689,57655.0,57654.0,0.1192]
[1725229668182,0.520335,57655.0,57654.0,0.1192]
[1725229668392,0.00082,57664.0,57658.0,0.005]
[1725229668659,0.520299,57659.0,57658.0,0.005]
[1725229668894,0.867165,57659.0,57658.0,0.005]
[1725229669149,0.346846,57663.0,57654.0,0.1142]
[1725229669150,0.173445,57655.0,57654.0,0.1142]
[1725229669397,0.867287,57651.0,57650.0,0.005]
[1725229669878,0.173457,57651.0,57650.0,0.005]
[1725229670121,0.173444,57656.0,57655.0,0.005]
[1725229670813,0.173444,57656.0,57644.0,0.263177]
[1725229670814,0.521074,57664.0,57663.0,0.1194]
[1725229671036,0.86791,57664.0,57663.0,0.1194]
[1725229671479,0.521074,57664.0,57663.0,0.2165]
[1725229671942,0.86691,57664.0,57663.0,0.22182351]
[1725229672380,0.00821,57673.0,57663.0,0.22182351]
[1725229672381,0.173403,57669.0,57668.0,0.005]
[1725229672622,0.520209,57669.0,57668.0,0.005]
[1725229672843,0.867015,57669.0,57668.0,0.005]
[1725229673552,0.520236,57666.0,57665.0,0.005]
[1725229673821,0.173412,57666.0,57665.0,0.005]
[1725229674282,0.520254,57664.0,57662.0,0.005]
[1725229674510,0.17343,57660.0,57659.0,0.005]
[1725229674740,0.00821,57673.0,57658.0,0.005]
[1725229674741,0.346808,57669.0,57658.0,0.005]
[1725229674965,0.520299,57659.0,57658.0,0.005]
[1725229675858,0.173427,57661.0,57658.0,0.005]
[1725229676077,0.173427,57661.0,57656.0,0.1204]
[1725229676078,0.173427,57661.0,57660.0,0.005]
[1725229676566,0.520281,57661.0,57660.0,0.005]
[1725229676782,0.867135,57661.0,57660.0,0.005]
[1725229677029,0.867135,57661.0,57639.0,0.346985]
[1725229677030,0.002,57657.0,57645.0,0.005]
[1725229677245,0.002,57657.0,57613.0,0.005902]
[1725229677246,0.002,57654.0,57647.0,0.50540786]
[1725229677479,0.52048,57639.0,57638.0,0.005]
[1725229677920,0.173483,57643.0,57642.0,0.005]
[1725229678145,0.867409,57643.0,57642.0,0.005]
[1725229678366,0.867409,57643.0,57633.0,0.1204]
[1725229678367,0.346902,57654.0,57650.0,0.005]
[1725229678598,0.54730786,57669.0,57650.0,0.0994]
[1725229678599,0.346841,57664.0,57650.0,0.0994]
[1725229678833,0.00821,57673.0,57658.0,0.005]
[1725229678834,0.346813,57668.0,57658.0,0.005]
[1725229679053,0.00821,57673.0,57658.0,0.1266]
[1725229679054,0.520299,57659.0,57658.0,0.1266]
[1725229679299,0.520299,57659.0,57658.0,0.005]
[1725229679300,0.867165,57659.0,57658.0,0.005]
[1725229679533,0.00821,57673.0,57656.0,0.005]
[1725229679534,0.173439,57657.0,57656.0,0.005]
[1725229679985,0.346844,57663.0,57659.0,0.005]
[1725229680218,0.17343,57660.0,57659.0,0.005]
[1725229680451,0.00821,57673.0,57664.0,0.005]
[1725229680452,0.173415,57665.0,57664.0,0.005]
[1725229680685,0.173415,57665.0,57655.0,0.173443]
[1725229680686,0.00821,57673.0,57653.0,0.005]
[1725229680955,0.00821,57673.0,57631.0,0.002]
[1725229680956,0.002,57662.0,57646.0,0.005]
[1725229681174,0.1007,57666.0,57644.0,0.1199]
[1725229681175,0.520426,57645.0,57644.0,0.1199]
[1725229681440,0.347023,57633.0,57630.0,0.0952]
[1725229681664,0.1007,57650.0,57626.0,0.50540786]
[1725229681665,0.1,57649.0,57634.0,0.005]
[1725229681905,0.1,57649.0,57623.0,0.1199]
[1725229681906,0.520534,57633.0,57628.0,0.005]
[1725229682148,0.520534,57633.0,57623.0,0.1199]
[1725229682149,1.397144,57633.0,57623.0,0.1199]
[1725229682390,1.537044,57633.0,57613.0,0.005902]
[1725229682643,1.944867,57633.0,57615.0,0.005]
[1725229682923,1.95790882,57633.0,57615.0,0.005]
[1725229683160,1.31458,57633.0,57622.0,0.005]
[1725229683407,1.31458,57633.0,57623.0,0.005]
[1725229683643,1.31458,57633.0,57613.0,0.000902]
[1725229683644,1.31458,57633.0,57625.0,0.005]
[1725229684127,1.31458,57633.0,57613.0,0.000902]
[1725229684128,1.661603,57633.0,57620.0,0.005]
[1725229684603,1.661603,57633.0,57624.0,0.005]
[1725229684839,1.31458,57633.0,57624.0,0.005]
[1725229685068,1.31458,57633.0,57625.0,0.005]
[1725229685308,0.173511,57633.0,57632.0,0.214902]
[1725229685556,0.52048,57639.0,57638.0,0.005]